Cogmind - Beta 16 @@@ ROGUE MODE // 2025.11.22 @ 17:34:04 Player: chebyrekser Result: Core destroyed Performance ------------- Evolutions (7) 3500 Regions Visited (24) 4800 Robots Destroyed (322) 1610 Value Destroyed (17124) 17124 Prototype IDs (59) 1180 Alien Tech Used (6) 1200 Bonus (7633) 7633 TOTAL SCORE: 37047 Bonus ------- High Alert Combat Kills 1451 Follower Combat Kills 731 Registered with UFD 300 Met Optimus in HQ 500 Met Data Miner 300 Met Zhirov 300 Met Warlord at Base 500 MAIN.C Attacked Warlord 500 Warlord Defense Kills 440 Used Core Reset Matrix 3000 Scanned by Researcher 500 Friendly Fire -889 Cogmind --------- Core Integrity 0/1300 Matter 24/300 Energy 37/100 System Corruption 27% Temperature Warm (181) Movement Hovering (196) Ox3 Location -3/Section 7 Parts ------- > --- POWER (2) -------- (None) > --- PROPULSION (7) --- Cooled Antigrav System Cooled Antigrav System > --- UTILITY (9) ------ Experimental Coolant Injector Huge Storage Unit Experimental Signal Interpreter Advanced Terrain Scan Processor Microwarp Drive > --- WEAPON (4) ------- (None) > --- INVENTORY (25) --- Improved Quantum Reactor Vortex Chain Reactor Advanced Cooling System Medium Storage Unit Advanced Gravity Neutralizer Quantum Capacitor Improved Transmission Jammer Centrium Medium Armor Plating Advanced Powered Armor Graphene Brace Phase Redirector Long-range Tractor Beam Integrity Redistributor Integrated Reactor Integrated Reactor Integrated Reactor LRC Energy Well Hypercooled Linear Accelerator Heavy Proton Missile Launcher Scatter Rocket Array Improved Plasma Cutter Peak State ------------ > --- POWER ------------ Micro Antimatter Reactor Quantum Reactor > --- PROPULSION ------- Advanced Medium Treads Improved Antigrav System Improved Antigrav System Cooled Antigrav System Cooled Antigrav System Cooled Antigrav System Cooled Antigrav System > --- UTILITY ---------- Experimental Coolant Injector Huge Storage Unit Experimental Signal Interpreter Advanced Terrain Scan Processor Quantum Capacitor Centrium Medium Armor Plating Centrium Medium Armor Plating Advanced Force Field > --- WEAPON ----------- Improved Matter Neutralizer Improved Matter Neutralizer Improved Matter Neutralizer Hypercooled Linear Accelerator > --- INVENTORY -------- Improved Quantum Reactor Vortex Chain Reactor Biometal Medium Treads Flexi-carbon Leg Improved Antigrav System Advanced Cooling System Medium Storage Unit Advanced Gravity Neutralizer Advanced Sensor Array Long-range Terrain Scanner Improved Transmission Jammer Advanced Powered Armor Graphene Brace Phase Redirector Long-range Tractor Beam Core Regenerator Integrity Redistributor Microwarp Drive Heavy Proton Missile Launcher Scatter Rocket Array Improved Plasma Cutter [Rating: 193] Favorites ----------- Power Ion Engine Engine Ion Engine Power Core Neutrino Core Reactor Antimatter Reactor Propulsion Armored Medium Treads Treads Armored Medium Treads Leg Flexi-carbon Leg Wheel Armored Huge Wheel Hover Unit Cooled Antigrav System Flight Unit VTOL Module Utility Huge Storage Unit Device Seismic Detector Storage Huge Storage Unit Processor Advanced Signal Interpreter Hackware Advanced System Shield Protection Centrium Medium Armor Plating Artifact Microwarp Drive Weapon Hypercooled Linear Accelerator Energy Gun Quantum Rifle Energy Cannon Improved EM Pulse Cannon Ballistic Gun Subdweller Machine Gun Ballistic Cannon Hypercooled Linear Accelerator Launcher Subdweller Shrapnel Launcher Special Weapon Improved Plasma Cutter Impact Weapon Maul Slashing Weapon Chainsword Build | -11 -10 -10 -9 -9 -6 -6 -6 -6 -5 -5 -5 -5 -5 -5 -5 -4 -4 -4 -4 -4 -3 -3 -3 -3 ------- Run | Yrd Mat Sub Rec Scr Fac Low Low Dat Pro Fac Was Fac Upp Upp Zhi Pro Fac Upp Upp War Pro Res Qua Sec Slots Evolved 14 | . . . . . 8 . . . . 2 . . . . . . 2 . . . . 2 . . Power 1 | . . . . . . . . . . . . . . . . . 1 . . . . . . . Propulsion 5 | . . . . . 3 . . . . 2 . . . . . . . . . . . . . . Utility 7 | . . . . . 4 . . . . . . . . . . . 1 . . . . 2 . . Weapon 1 | . . . . . 1 . . . . . . . . . . . . . . . . . . . Parts Attached 232 | 8 15 13 . 7 6 6 3 . 6 24 12 8 6 2 6 . 11 1 5 9 1 7 59 17 Power 22 | 1 3 1 . . . . . . 1 3 1 . . . 1 . 3 . . 1 . 1 4 2 Engine 5 | 1 3 1 . . . . . . . . . . . . . . . . . . . . . . Core 7 | . . . . . . . . . 1 3 . . . . . . 3 . . . . . . . Reactor 10 | . . . . . . . . . . . 1 . . . 1 . . . . 1 . 1 4 2 Propulsion 63 | 3 3 3 . 3 2 2 . . . 10 4 2 1 . . . 3 . 3 1 . 1 12 10 Treads 27 | 1 3 2 . . 2 . . . . . 3 2 1 . . . 2 . 3 1 . 1 6 . Leg 4 | 1 . . . . . . . . . . . . . . . . . . . . . . 2 1 Wheel 9 | 1 . 1 . 3 . 2 . . . . . . . . . . 1 . . . . . 1 . Hover 13 | . . . . . . . . . . 1 . . . . . . . . . . . . 3 9 Flight 10 | . . . . . . . . . . 9 1 . . . . . . . . . . . . . Utility 85 | 2 3 1 . 2 3 3 1 . 2 4 4 3 2 . 4 . 2 1 1 6 . 4 33 4 Device 44 | 1 1 1 . . . 3 1 . 1 3 2 2 . . 1 . 1 . 1 4 . 3 17 2 Storage 8 | 1 1 . . 1 . . . . . . . 1 . . 1 . . . . . . . 3 . Processor 5 | . . . . . 2 . . . . . . . . . . . . . . 1 . 1 1 . Hackware 4 | . . . . . 1 . . . 1 1 . . . . . . 1 . . . . . . . Protection 23 | . 1 . . 1 . . . . . . 2 . 2 . 2 . . 1 . 1 . . 12 1 Artifact 1 | . . . . . . . . . . . . . . . . . . . . . . . . 1 Weapon 62 | 2 6 8 . 2 1 1 2 . 3 7 3 3 3 2 1 . 3 . 1 1 1 1 10 1 Energy Gun 12 | . . . . 1 . . . . 1 1 2 1 1 . . . . . . 1 . 1 3 . Energy Cannon 11 | . . 2 . . . . . . 1 1 . . 2 . . . 1 . . . . . 3 1 Ballistic Gun 18 | 2 3 4 . . 1 1 1 . . 2 1 1 . . 1 . . . . . 1 . . . Ballistic Cannon 7 | . . . . . . . . . . 1 . . . . . . 2 . 1 . . . 3 . Launcher 7 | . 2 1 . . . . . . 1 1 . 1 . . . . . . . . . . 1 . Special Weapon 3 | . . 1 . 1 . . . . . . . . . 1 . . . . . . . . . . Impact Weapon 2 | . 1 . . . . . 1 . . . . . . . . . . . . . . . . . Slashing Weapon 2 | . . . . . . . . . . 1 . . . 1 . . . . . . . . . . Piercing Weapon . | . . . . . . . . . . . . . . . . . . . . . . . . . Special Melee Weapon . | . . . . . . . . . . . . . . . . . . . . . . . . . Unidentified Prototypes 20 | . . . . . . . 1 . . 2 1 . . . 5 . . . . 5 . 1 4 1 Corrupted Parts 12 | . . . . . . . . . . . . . . . . . . . . . . . 11 1 System Corruption 84 | . . . . . . . . . . . . . . . . . . . . . . . 75 9 Parts Lost 73 | . 1 6 . . . . . . 11 2 . . 3 . . . 2 . 4 2 1 5 21 15 Power 9 | . . 1 . . . . . . 1 . . . . . . . . . . 1 1 1 2 2 Propulsion 25 | . . 1 . . . . . . 2 1 . . 1 . . . 1 . 1 . . 1 8 9 Utility 17 | . 1 1 . . . . . . 3 1 . . 1 . . . . . 1 . . 2 5 2 Weapon 22 | . . 3 . . . . . . 5 . . . 1 . . . 1 . 2 1 . 1 6 2 Highest Loss Streak 8 | . 1 2 . . . . . . 5 1 . . 2 . . . 1 . 2 1 1 2 7 8 To Critical Strikes 4 | . . . . . . . . . . . . . 1 . . . . . 1 . . . . 2 Average Backups 21 | 6 19 18 17 21 28 29 28 28 24 3 4 16 24 25 24 25 24 25 24 24 22 22 23 22 Power 1 | . 1 2 4 1 1 1 1 1 . . . 1 1 2 2 2 2 2 2 1 1 1 1 1 Propulsion 4 | 3 6 4 4 4 5 5 6 6 5 1 . 3 4 4 5 6 6 7 5 6 6 6 5 3 Utility 6 | . 2 4 4 5 6 8 10 11 10 . . 4 7 8 8 8 7 7 7 8 8 8 10 11 Weapon 6 | 1 8 6 5 6 10 9 6 6 5 . 3 7 9 10 9 7 7 7 6 5 4 4 3 2 Tool/Special . | . . . . . . . . . . . . . . . . . . . . . . . . . Unused Backups 93 | . 5 4 1 15 3 4 6 . 16 2 1 4 . . 2 . 3 . 1 6 . 2 6 12 Power 10 | . 2 . . 4 . . . . 1 . . 1 . . 1 . . . . . . . . 1 Propulsion 15 | . 1 . . 2 . 1 1 . 3 1 . . . . . . . . 1 3 . . 1 1 Utility 38 | . 1 2 1 7 2 2 . . 7 1 . 1 . . 1 . 2 . . 2 . 2 3 4 Weapon 19 | . 1 2 . 2 1 1 4 . 1 . 1 2 . . . . 1 . . 1 . . 1 1 Tool/Special 11 | . . . . . . . 1 . 4 . . . . . . . . . . . . . 1 5 Average Slot Usage (%) 89 | . 99 99 100 89 84 82 80 81 73 37 81 87 87 88 73 88 86 95 96 98 99 93 87 85 Engine 5 | . 14 13 14 14 6 6 6 6 3 . . . . . . . . . . . . . . . Reactor 3 | . . . . . . . . . . . 3 5 5 5 4 5 5 5 5 4 4 5 8 8 Treads 22 | . 27 28 28 16 12 4 . . . . 13 21 26 27 27 27 26 30 33 35 35 30 24 18 Wheel 3 | . . . . 11 19 17 18 18 15 . . . . . . . . . . . . . . . Device 10 | . 8 13 14 4 5 5 5 6 5 5 9 10 10 10 7 10 10 10 5 7 10 9 15 18 Storage 7 | . 14 14 14 13 6 6 6 6 5 . . 3 5 5 5 5 5 5 5 5 5 4 4 4 Processor 3 | . . . . . 7 13 12 12 7 5 5 5 5 5 5 5 5 5 5 5 5 5 5 9 Hackware 3 | . . . . . 4 6 6 6 9 5 11 7 5 5 5 5 7 10 10 10 10 9 1 . Protection 3 | . 5 . . . . . . . . . 3 5 5 5 8 5 5 5 9 7 5 7 7 2 Energy Gun 3 | . . . . 9 . . . . 1 . 5 4 3 2 . 5 4 4 1 4 4 4 4 . Energy Cannon 3 | . . 12 . . . . . . . . . . 4 7 . 11 1 . 6 4 . . . 9 Ballistic Gun 8 | . 23 13 14 12 12 13 18 18 17 4 3 9 6 5 . 5 5 5 1 . 4 3 . . Ballistic Cannon 3 | . . . . . . . . . . . 2 5 5 4 . . 8 10 10 9 10 8 9 4 Launcher 1 | . . . 14 4 . . . . 3 . . . 1 . . . . . . . . . . . Peak Build Rating 193 | 7 12 14 14 20 43 59 62 62 66 51 94 108 108 109 110 109 131 132 132 137 139 152 182 193 Average Rating 78 | 6 10 12 14 16 36 51 60 62 61 24 79 98 103 106 93 108 120 129 122 129 137 142 162 168 On Entrance 77 | . 7 12 14 14 20 43 59 62 62 8 49 91 108 105 109 108 109 131 132 120 133 139 143 168 Avg Prop Armor Cover (%) 7 | 14 14 . . . 13 13 . . . 7 6 2 . . . . . . . . . . 4 4 Naked Turns . | . . . . . . . . . . . . . . . . . . . . . . . . . Heaviest Build 232 | 11 54 63 58 213 219 226 226 221 232 16 48 136 138 135 135 131 157 157 157 169 170 177 201 199 Greatest Support 221 | 16 40 40 40 40 46 66 66 66 66 24 163 217 221 221 221 221 221 205 205 189 189 192 192 185 Greatest Overweight (x) 21 | . 2 1 1 21 5 5 3 3 7 . 11 . . . . . . . . . . . 15 5 Average Overweight (x) 1 | . 1 1 1 4 4 3 3 3 2 . . . . . . . . . . . . . 1 1 Largest Inventory Capacity 35 | 8 20 20 20 35 35 35 35 35 35 5 5 25 25 25 25 25 25 25 25 25 25 25 25 25 Average Capacity 24 | 7 19 20 20 29 35 35 35 35 34 5 5 20 25 25 25 25 25 25 25 25 25 25 25 25 Most Carried 35 | 8 20 20 20 35 35 35 35 35 35 5 5 25 25 25 25 25 25 25 25 25 25 25 25 25 Average Carried 22 | 6 19 19 19 24 32 34 34 35 33 4 4 16 24 25 24 25 24 25 24 24 23 24 24 24 Final Capacity 35 | 8 20 20 20 35 35 35 35 35 5 5 5 25 25 25 25 25 25 25 25 25 25 25 25 25 Final Carried 35 | 8 20 20 20 35 35 34 35 35 2 5 5 25 25 25 25 25 25 25 25 25 23 25 25 23 Class Distribution -------------------- 29% | Mutant 27% | Scavenger-Tank 16% | Hacker-Tank 12% | Hauler-Mutant 3% | Hauler-Skirmisher 3% | Scavenger-Mutant Dominant Class ---------------- Mutant | -10/Materials Mutant | -10/Subcaves Mutant | -9/Recycling Hauler-Mutant | -9/Scraptown Hauler-Mutant | -6/Factory Hauler-Mutant | -6/Lower Caves Hauler-Assassin | -6/Lower Caves Hauler-Assassin | -6/Data Miner Hauler-Skirmisher | -5/Proximity Caves Mutant | -5/Factory Scavenger-Tank | -5/Waste Scavenger-Tank | -5/Factory Scavenger-Tank | -5/Upper Caves Scavenger-Tank | -5/Upper Caves Scavenger-Mutant | -5/Zhirov Scavenger-Tank | -4/Proximity Caves Hacker-Tank | -4/Factory Hacker-Tank | -4/Upper Caves Hacker-Tank | -4/Upper Caves Hacker-Tank | -4/Warlord Hacker-Tank | -3/Proximity Caves Hacker-Tank | -3/Research Scavenger-Tank | -3/Quarantine Scavenger-Skirmisher | -3/Section 7 Resources | -11 -10 -10 -9 -9 -6 -6 -6 -6 -5 -5 -5 -5 -5 -5 -5 -4 -4 -4 -4 -4 -3 -3 -3 -3 ----------- Run | Yrd Mat Sub Rec Scr Fac Low Low Dat Pro Fac Was Fac Upp Upp Zhi Pro Fac Upp Upp War Pro Res Qua Sec Matter Collected 12329 | 322 907 492 . 81 18 261 120 . 405 438 382 973 595 66 57 224 889 460 550 837 555 794 2012 891 Remotely 2400 | . . . . . . . . . . . . 241 . . . . . . . 497 291 374 726 271 Salvage Created 13316 | 210 991 613 . . 18 100 . . 377 87 164 1206 753 . 94 246 1390 543 903 162 452 1115 2389 1503 Parts 592 | 18 52 33 . . 1 . . . 19 17 5 50 18 . 2 10 71 16 22 1 18 46 134 59 Haulers Intercepted 2 | . 1 . . . . . . . . . . . . . . . . . . . . . . 1 Recyclers Shooed 22 | . 3 . . . . . . . . 5 . 4 . . . . 6 . . . . 1 2 1 Parts Field Recycled . | . . . . . . . . . . . . . . . . . . . . . . . . . Retrieved Matter . | . . . . . . . . . . . . . . . . . . . . . . . . . Parts Self-Destructed 74 | . . 9 . . . . . . 12 . . . 6 . 2 5 . 11 11 . 18 . . . Prevented 23 | . . . . . . . . . 4 . . . 1 . . 8 . . 10 . . . . . Parts Restored . | . . . . . . . . . . . . . . . . . . . . . . . . . Kills | -11 -10 -10 -9 -9 -6 -6 -6 -6 -5 -5 -5 -5 -5 -5 -5 -4 -4 -4 -4 -4 -3 -3 -3 -3 ------- Run | Yrd Mat Sub Rec Scr Fac Low Low Dat Pro Fac Was Fac Upp Upp Zhi Pro Fac Upp Upp War Pro Res Qua Sec Combat Hostiles Destroyed 232 | . 17 13 . . . . . . 11 8 . 16 17 . . 3 20 15 20 3 12 19 30 28 Guns 50 | . 11 . . . . . . . 5 . . 10 1 . . 1 3 . 3 . 2 8 6 . Cannons 71 | . . 8 . . . . . . 1 2 . 6 2 . . . 7 3 5 3 6 6 5 17 AOE 80 | . 6 3 . . . . . . 5 6 . . 12 . . . 10 12 10 . 4 5 4 3 Classes Destroyed 26 | 2 6 3 . . 1 . . . 5 . 1 . 1 . . 1 . 1 . 1 . . 2 2 Worker 21 | . 5 . . . . . . . . 4 . . . . . . 4 . . . . 1 4 3 Builder 17 | . . . . . 1 . . . . . . 1 . . . . 5 . . . . 5 3 2 Tunneler 10 | 7 1 . . . . . . . . . . 1 . . . . . . . . . 1 . . Hauler 2 | . 1 . . . . . . . . . . . . . . . . . . . . . . 1 Recycler 19 | 1 5 . . . . . . . . . . 3 . . . . 4 . . . . 3 1 2 Minesweeper 1 | . . . . . . . . . 1 . . . . . . . . . . . . . . . Mechanic 2 | . 1 . . . . . . . . . . . . . . . . . . . . . 1 . Operator 1 | . . . . . . . . . . . . . . . . . . . . . . . . 1 Turret 2 | . . 2 . . . . . . . . . . . . . . . . . . . . . . Watcher 9 | . 2 . . . . . . . . . . 1 . . . . 2 . . . . . . 4 Swarmer 43 | . 6 3 . . . . . . 1 8 . 2 5 . . . . 4 1 . 4 4 . 5 Grunt 92 | . 11 1 . . . . . . 4 . . 10 5 . . 2 10 5 14 . 8 8 7 7 Brawler 3 | . . . . . . . . . 1 . . . . . . . . 1 1 . . . . . Duelist 6 | . . . . . . . . . . . . . . . . 1 . 3 . . . . . 2 Protector 2 | . . . . . . . . . 1 . . . . . . . . . . 1 . . . . Researcher 3 | . . . . . . . . . . . . . . . . . . . . . . . 3 . Sentry 12 | . . 1 . . . . . . . . . . 1 . . . 1 2 2 . . 2 . 3 Demolisher 1 | . . . . . . . . . . . . . . . . . . . . 1 . . . . Hunter 8 | . . . . . . . . . 2 . . . . . . . . . 2 . . . 4 . Programmer 33 | . . . . . . . . . 2 . . 4 . . . . 9 . . . . 5 6 7 Quarantine Guard 12 | . . . . . . . . . . . . . . . . . . . . . . . 12 . S7 Guard 2 | . . . . . . . . . . . . . . . . . . . . . . . . 2 Striker 1 | . . . . . . . . . . . . . . . . . . . . 1 . . . . Alpha 7 2 | . . . . . . . . . . . . . . . . . . . . . . . . 2 Fortress 1 | . . . . . . . . . . . . . . . . . . . . . . . 1 . Subdweller 8 | . . 8 . . . . . . . . . . . . . . . . . . . . . . Decomposer 1 | . . . . . . 1 . . . . . . . . . . . . . . . . . . Packrat 1 | . . . . . . 1 . . . . . . . . . . . . . . . . . . Samaritan 1 | . . . . . . . . . . . . . . . . . . 1 . . . . . . Surgeon 1 | . . . . . . . . . . . 1 . . . . . . . . . . . . . Thug 1 | . . . . . . . . . . . . . 1 . . . . . . . . . . . Savage 4 | . . . . . . . . . . . . . 4 . . . . . . . . . . . Martyr 2 | . . . . . . . . . . . 2 . . . . . . . . . . . . . Mutant 1 | . . . . . . . . . . . . . 1 . . . . . . . . . . . Best Kill Streak 14 | 6 4 3 . . 1 . . . 4 10 . 5 4 . . 2 8 6 7 2 5 9 14 11 Combat Bots Only 8 | . 3 3 . . . . . . 4 8 . 5 4 . . 2 6 6 7 2 5 6 5 6 Max Kills in Single Turn 8 | 1 3 3 . . 1 1 . . 2 8 1 2 4 . . 1 4 5 3 1 4 4 5 6 Gunslinging 1 | . . . . . . . . . . . . . . . . . . . . . . 1 . . Exploded 6 | . 3 3 . . . . . . 2 6 . . 4 . . . 4 5 3 . 4 3 2 3 Melee . | . . . . . . . . . . . . . . . . . . . . . . . . . Uniques/NPCs Destroyed . | . . . . . . . . . . . . . . . . . . . . . . . . . Combat | -11 -10 -10 -9 -9 -6 -6 -6 -6 -5 -5 -5 -5 -5 -5 -5 -4 -4 -4 -4 -4 -3 -3 -3 -3 -------- Run | Yrd Mat Sub Rec Scr Fac Low Low Dat Pro Fac Was Fac Upp Upp Zhi Pro Fac Upp Upp War Pro Res Qua Sec Hostile Shots Fired 1368 | . 50 59 . . . 3 . . 146 12 . 68 61 . . 6 61 29 86 17 60 153 281 276 Missed 356 | . 11 10 . . . . . . 45 4 . 11 26 . . 1 19 10 18 7 16 38 66 74 Hits 1012 | . 39 49 . . . 3 . . 101 8 . 57 35 . . 5 42 19 68 10 44 115 215 202 Projectile 1012 | . 39 49 . . . 3 . . 101 8 . 57 35 . . 5 42 19 68 10 44 115 215 202 AOE 1 | . . . . . . . . . . . . . . . . . . . . 1 . . . . Critical Strikes 62 | . . . . . . . . . 3 . . 1 8 . . 1 3 1 4 . 7 9 13 12 Part Disruptions 7 | . . . . . . . . . 1 . . . . . . . . . . . . 1 2 3 Damage Taken 19836 | . 531 838 . . . 48 . . 1805 156 . 849 586 . . 94 915 444 1616 489 633 1934 4195 4703 Core 2363 | . 33 150 . . . 22 . . 232 60 . 31 47 . . . 26 6 115 . 56 105 265 1215 Absorbed by Shields 3814 | . . . . . . . . . 162 . . 274 67 . . . 114 131 . 54 281 695 1289 747 Reduced by Siege Mode 83 | . . . . . . . . . . . . 52 . . . 22 9 . . . . . . . Ignored by Resistances 16 | . . . . . . . . . 16 . . . . . . . . . . . . . . . Regen/Repaired (Parts) 555 | . . . . . . . . . . . 96 . . . . . . . . 459 . . . . Core Remaining (%) 72 | 100 . . . 26 . . . . 70 . . . . . . 86 . . . . 82 . . . Volleys Fired 1027 | 21 60 63 . 1 . 6 . . 51 46 18 58 33 44 . 33 86 12 32 28 23 50 153 209 Largest 4 | 2 2 2 . 1 . 2 . . 4 2 1 4 4 1 . 4 4 4 4 4 4 4 4 2 Hottest 265 | 40 60 160 . . . 60 . . 116 81 65 202 202 94 . 265 232 196 236 232 198 198 221 226 Shots Fired 1707 | 42 111 89 . 1 . 13 . . 89 48 18 167 41 43 . 47 154 34 72 57 82 145 231 223 Gun 969 | 42 106 35 . . . 13 . . 68 37 18 126 3 42 . 33 107 17 15 1 42 84 167 13 Cannon 671 | . . 40 . . . . . . 9 11 . 41 26 1 . 14 43 14 51 55 38 60 60 208 Launcher 60 | . 5 8 . . . . . . 12 . . . 12 . . . 4 3 6 1 2 1 4 2 Special 7 | . . 6 . 1 . . . . . . . . . . . . . . . . . . . . Kinetic 852 | 42 106 37 . . . 13 . . 56 43 . 122 3 . . 5 65 22 28 54 59 96 81 20 Thermal 586 | . . 46 . . . . . . 16 . . 45 1 42 . 28 79 9 9 1 21 30 71 188 Explosive 48 | . 5 6 . . . . . . 8 . . . 6 . . . 4 3 6 1 2 1 4 2 Electromagnetic 197 | . . . . . . . . . 9 5 18 . 31 1 . 14 6 . 29 1 . . 70 13 Entropic 23 | . . . . . . . . . . . . . . . . . . . . . . 18 5 . Robot Hit Streak 36 | 7 10 29 . 30 . 36 . . 8 5 6 18 13 . . 23 9 6 7 7 6 8 15 21 Robot Miss Streak 11 | 2 5 1 . . . 1 . . 7 4 3 3 4 . . . 5 5 11 2 8 3 11 9 Penetration Max 2 | . . . . . . . . . . . . 1 . . . 1 1 1 . 1 2 1 1 . Secondary Targets 4 | . 1 . . . . . . . . . . . . . . . . . . . . 2 1 . Max Gunslinging Chain 1 | . 1 . . . . . . . . . . . . . . . . . . . . 1 1 . Capacitor 277 | . . . . . . . . . . . . . . . . . . . . . . . 85 192 Shots Hit Robots 1003 | 26 87 51 . 1 2 10 . . 56 22 15 110 24 . 2 18 79 21 38 33 35 87 146 140 Core Hits 840 | 17 54 20 . . . 4 . . 39 18 8 46 65 . 1 7 98 63 92 24 38 58 96 92 Critical Kills 16 | . 1 2 . . . . . . . . . 1 . . . . . . . . . 1 4 7 Critical Parts Destroyed 12 | . 2 . . . . . . . 2 . . 1 . . . . . 1 . . . 2 4 . Critical Strikes 72 | . 3 2 . . . . . . 2 1 . 8 . . . . 4 4 4 5 4 10 16 9 Meltdown 10 | . . 2 . . . . . . . . . . . . . . . . . . . . 1 7 Destroy 14 | . 2 . . . . . . . 2 . . 2 . . . . . 1 . . . 1 6 . Blast 42 | . . . . . . . . . . 1 . 6 . . . . 4 3 4 5 4 7 6 2 Corrupt 2 | . . . . . . . . . . . . . . . . . . . . . . . 2 . Smash 1 | . 1 . . . . . . . . . . . . . . . . . . . . . . . Detonate 3 | . . . . . . . . . . . . . . . . . . . . . . 2 1 . Melee Attacks 36 | . 10 2 . . 15 . 1 . . 1 2 3 . . 2 . . . . . . . . . Impact 28 | . 10 2 . . 15 . 1 . . . . . . . . . . . . . . . . . Slashing 8 | . . . . . . . . . . 1 2 3 . . 2 . . . . . . . . . Piercing . | . . . . . . . . . . . . . . . . . . . . . . . . . Sneak Attacks 7 | . 3 . . . 1 . . . . . 2 1 . . . . . . . . . . . . Combat Hostiles . | . . . . . . . . . . . . . . . . . . . . . . . . . Follow-up Attacks . | . . . . . . . . . . . . . . . . . . . . . . . . . Damage Inflicted 45669 | 210 1903 1853 . . 80 214 . . 2451 1509 607 3395 2194 . 188 530 4423 2089 3362 1767 1824 4244 5889 6937 Guns 14122 | 210 1205 443 . . . 214 . . 816 279 85 2368 17 . . 196 1577 259 194 30 588 2080 3223 338 Cannons 14725 | . . 747 . . . . . . 212 214 . 949 542 . . 334 1133 352 792 1409 423 1330 1006 5282 Explosions 16037 | . 428 663 . . . . . . 1423 1016 353 . 1635 . . . 1713 1478 2376 328 813 834 1660 1317 Melee 785 | . 270 . . . 80 . . . . . 169 78 . . 188 . . . . . . . . . Ramming . | . . . . . . . . . . . . . . . . . . . . . . . . . Kinetic 15717 | 210 1205 645 . . . 214 . . 1226 458 . 2578 17 . . 137 1611 492 364 1384 774 2227 1690 485 Thermal 10775 | . . 747 . . . . . . 208 . 353 739 48 . . 59 951 119 124 30 237 867 1496 4797 Explosive 13974 | . 428 461 . . . . . . 805 1016 . . 1424 . . . 1713 1478 2376 328 813 520 1295 1317 Electromagnetic 3635 | . . . . . . . . . 212 35 85 . 705 . . 334 148 . 498 25 . . 1255 338 Impact 350 | . 270 . . . 80 . . . . . . . . . . . . . . . . . . . Slashing 435 | . . . . . . . . . . . 169 78 . . 188 . . . . . . . . . Piercing . | . . . . . . . . . . . . . . . . . . . . . . . . . Entropic 783 | . . . . . . . . . . . . . . . . . . . . . . 630 153 . Highest Corruption 88 | . . . . . 3 3 . . 6 . . 4 4 4 4 4 6 6 6 6 1 6 88 27 Average Corruption 7 | . . . . . 2 2 . . 4 . . 3 4 4 4 4 3 6 6 1 1 4 21 12 Corruption Purged 3 | . . . . . . 3 . . . . . . . . . . . . . . . . . . Corruption Blocked . | . . . . . . . . . . . . . . . . . . . . . . . . . Effects 361 | . . . . . 7 13 . . 15 . . 13 30 25 8 17 28 23 35 8 3 8 83 45 Message Errors 89 | . . . . . 1 2 . . 4 . . 3 13 5 1 8 4 9 10 1 . . 20 8 Matter Fused 85 | . . . . . 2 3 . . 3 . . 8 6 6 3 3 7 1 10 5 1 2 19 6 Heat Flow Errors 33 | . . . . . . 1 . . 2 . . . 2 3 . 1 3 3 3 . 1 . 10 4 Energy Discharges 46 | . . . . . 3 3 . . . . . 1 2 4 2 2 6 2 1 . . 2 13 5 Parts Rejected 1 | . . . . . . . . . . . . . 1 . . . . . . . . . . . Parts Fused 3 | . . . . . . . . . . . . . . . 1 . . 1 . . . . . 1 Data Loss (minor) 47 | . . . . . . 1 . . 4 . . . 5 1 1 1 5 4 5 2 1 1 11 5 Data Loss (major) 21 | . . . . . . 1 . . . . . . 1 3 . 1 1 1 5 . . 1 2 5 Misfires 10 | . . . . . . 1 . . 1 . . . . 1 . . . 1 . . . 1 3 2 Alerts 10 | . . . . . 1 1 . . . . . . . . . . 1 1 1 . . . 1 4 Misdirections 4 | . . . . . . . . . . . . . . . . . . . . . . . . 4 Weapon Failures 12 | . . . . . . . . . 1 . . 1 . 2 . 1 1 . . . . 1 4 1 Overload Shots . | . . . . . . . . . . . . . . . . . . . . . . . . . Overflow Damage 1024 | . 146 41 . . 10 . . . 84 107 . 119 17 . . 8 48 12 11 9 13 30 113 256 Projectiles 491 | . . 11 . . . . . . . 15 . 81 4 . . 8 48 . 11 9 13 30 5 256 Explosions 339 | . . 30 . . . . . . 84 92 . . 13 . . . . 12 . . . . 108 . Melee 194 | . 146 . . . 10 . . . . . . 38 . . . . . . . . . . . . Knockbacks 52 | . . . . . 1 . . . . 2 . 8 . . . . 6 2 2 2 3 13 8 5 Impact 1 | . . . . . 1 . . . . . . . . . . . . . . . . . . . Kinetic 50 | . . . . . . . . . . 2 . 7 . . . . 6 2 2 2 3 13 8 5 Secondary 1 | . . . . . . . . . . . . 1 . . . . . . . . . . . . Self-Inflicted Damage 1011 | . 49 . . . . . . . 231 . . . 60 . . . 12 199 110 18 18 76 71 167 Shots 46 | . 2 . . . . . . . 8 . . . 3 . . . 1 9 5 2 1 3 3 9 Rammed . | . . . . . . . . . . . . . . . . . . . . . . . . . Targets Rammed . | . . . . . . . . . . . . . . . . . . . . . . . . . Kicked . | . . . . . . . . . . . . . . . . . . . . . . . . . Crushed . | . . . . . . . . . . . . . . . . . . . . . . . . . Highest Temperature 443 | . 42 135 . . . 88 . . 365 16 151 258 252 289 . 207 220 198 247 173 208 12 443 299 Average Temperature 69 | . 18 24 . . . 56 . . 88 8 45 73 52 39 . 103 39 74 60 61 94 12 104 79 Received Heat Transfer 2624 | . 243 207 . . . . . . 222 . . 326 218 . . 48 87 44 273 30 257 297 152 220 Effects 4 | . . . . . . . . . 1 . . . . . . . . . . . . . 3 . Shutdowns 2 | . . . . . . . . . . . . . . . . . . . . . . . 2 . Damage (minor) 2 | . . . . . . . . . 1 . . . . . . . . . . . . . 1 . Siege Activations 13 | . . . . . . . . . . . . 6 . . . 2 4 1 . . . . . . Total Turns 211 | . . . . . . . . . . . . 131 . . . 28 38 14 . . . . . . Longest Duration 40 | . . . . . . . . . . . . 40 . . . 18 15 14 . . . . . . Martial Activations . | . . . . . . . . . . . . . . . . . . . . . . . . . Shielding Activations . | . . . . . . . . . . . . . . . . . . . . . . . . . Robots Disrupted 2 | . . . . . . . . . . 1 . . . . . . . . . . . . 1 . Combat Hostiles 1 | . . . . . . . . . . . . . . . . . . . . . . . 1 . Robots Corrupted 23 | . 1 . . . 1 . . . . . . . 3 . . 2 . . 2 . . . 12 2 Combat Hostiles 20 | . . . . . . . . . . . . . 3 . . 2 . . 2 . . . 12 1 Parts Fried 48 | . 3 . . . 2 . . . . . . . 6 . . 3 . . 5 . . . 25 4 Impact Corruptions 7 | . 5 . . . 2 . . . . . . . . . . . . . . . . . . . Robots Melted 14 | . . 2 . . . . . . . . . . . . . . . . . . . . 4 8 Combat Hostiles 12 | . . 2 . . . . . . . . . . . . . . . . . . . . 3 7 Parts Melted 38 | . . 4 . . . . . . 2 . . . . . . . 1 2 . 1 . . 15 13 Heat Transferred 11695 | . . 1036 . . . . . . 407 . 350 888 50 . . 74 1184 148 148 37 296 929 1616 4532 Parts Sabotaged . | . . . . . . . . . . . . . . . . . . . . . . . . . Parts Stolen . | . . . . . . . . . . . . . . . . . . . . . . . . . Parts Stripped . | . . . . . . . . . . . . . . . . . . . . . . . . . Power Chain Reactions 2 | . . . . . . . . . . . 1 . 1 . . . . . . . . . . . Alert | -11 -10 -10 -9 -9 -6 -6 -6 -6 -5 -5 -5 -5 -5 -5 -5 -4 -4 -4 -4 -4 -3 -3 -3 -3 ------- Run | Yrd Mat Sub Rec Scr Fac Low Low Dat Pro Fac Was Fac Upp Upp Zhi Pro Fac Upp Upp War Pro Res Qua Sec Maximum Alert Level 3 | . . . . . . . . . . 2 . 1 . . . . 2 . . . . 2 2 3 Low Security (%) 40 | 100 100 . 100 . 100 . . . . 47 100 53 . . . . 46 . . . . 15 2 . Level 1 27 | . . . . . . . . . . 34 . 46 . . . . 35 . . . . 65 37 19 Level 2 30 | . . . . . . . . . . 18 . . . . . . 17 . . . . 18 59 63 Level 3 1 | . . . . . . . . . . . . . . . . . . . . . . . . 17 Level 4 . | . . . . . . . . . . . . . . . . . . . . . . . . . Level 5 . | . . . . . . . . . . . . . . . . . . . . . . . . . High Security . | . . . . . . . . . . . . . . . . . . . . . . . . . Max Security . | . . . . . . . . . . . . . . . . . . . . . . . . . Peak Influence 819 | 10 128 . 30 . 6 . . . . 488 158 338 . . . . 469 . . . . 521 575 819 Initial 288 | . . . 26 . . . . . . 7 158 . . . . . . . . . . 220 288 277 Average 255 | 1 47 . 6 . . . . . . 180 14 182 . . . . 218 . . . . 286 399 497 Influence Increases 8471 | 40 618 185 60 . 16 33 . . 345 725 26 774 245 . 5 85 921 320 454 180 305 827 1186 1121 Destroy 0b10 Robot/C 4740 | . 340 140 . . . 20 . . 200 340 . 440 220 . . 60 400 300 400 40 240 380 660 560 Destroy 0b10 Robot/NC 435 | 40 75 . . . 5 . . . 10 20 . 35 5 . 5 . 75 . . 5 . 50 45 65 Destroy Leader 762 | . 66 . . . . 10 . . 30 50 . 72 20 . . 10 94 20 40 . 20 80 160 90 Allied During Kill 192 | . . . . . . 3 . . . 82 . 93 . . . . . . 14 . . . . . Successful Hack 109 | . 16 . . . . . . . . 4 . . . . . . 19 . . . . 26 39 5 Select Force Hacks 90 | . 30 . 60 . . . . . . . . . . . . . . . . . . . . . Disable Machine 450 | . 30 . . . . . . . . 90 . 30 . . . . 45 . . . . 15 120 120 Destroy Structure 958 | . 31 . . . 11 . . . . 94 26 74 . . . . 228 . . . . 126 162 206 Advance Influence 150 | . . . . . . . . . . . . . . . . . . . . . . 150 . . Partial Spotted 45 | . 15 . . . . . . . . 15 . . . . . . 15 . . . . . . . Lose Combat Pursuer 540 | . 15 45 . . . . . . 105 30 . 30 . . . 15 45 . . 135 45 . . 75 Influence Decreases 7773 | 40 543 205 115 . 16 33 . . 332 284 480 481 538 . 5 85 472 509 592 226 276 419 1205 917 Entered New Map 1369 | . . 37 29 . . . . . . 6 296 . 109 . . . . 167 50 122 76 35 225 217 Time Decay 5453 | 40 533 138 86 . 16 33 . . 223 188 58 435 399 . 5 85 452 342 482 94 190 334 770 550 Lost Part 649 | . . 30 . . . . . . 89 10 . . 30 . . . 20 . 40 10 10 50 210 150 Lost Ally 302 | . 10 . . . . . . . 20 80 126 46 . . . . . . 20 . . . . . Squads Dispatched 40 | . 1 . . . 1 . . . . 5 . 5 . . . . 11 . 1 . . 4 6 6 Investigation 11 | . 1 . . . 1 . . . . 2 . 2 . . . . 3 . . . . 1 1 . Extermination 16 | . . . . . . . . . . 1 . 3 . . . . 5 . . . . 2 1 4 Reinforcement 9 | . . . . . . . . . . 1 . . . . . . 2 . . . . 1 4 1 Assault 2 | . . . . . . . . . . . . . . . . . . . 1 . . . . 1 Garrison 2 | . . . . . . . . . . 1 . . . . . . 1 . . . . . . . Intercept . | . . . . . . . . . . . . . . . . . . . . . . . . . Searches Triggered . | . . . . . . . . . . . . . . . . . . . . . . . . . Data Miner Redirects 6 | . . . . . . . . . . 1 . . . . . . 3 . . . . 1 . 1 Construction Impeded 2 | . . . . . . . . . . . . . . . . . . . . . . 1 1 . Haulers Reinforced 4 | . . . . . . . . . . . . . . . . . 1 . . . . . 2 1 Active Scanning Responses . | . . . . . . . . . . . . . . . . . . . . . . . . . Cargo Convoy Interrupts . | . . . . . . . . . . . . . . . . . . . . . . . . . Stealth | -11 -10 -10 -9 -9 -6 -6 -6 -6 -5 -5 -5 -5 -5 -5 -5 -4 -4 -4 -4 -4 -3 -3 -3 -3 --------- Run | Yrd Mat Sub Rec Scr Fac Low Low Dat Pro Fac Was Fac Upp Upp Zhi Pro Fac Upp Upp War Pro Res Qua Sec Distress Signals 13 | . 1 . . . . . . . . . . 1 . . . . 2 . . 2 1 . 2 4 Communications Jammed 6 | . . . . . . . . . . . . . . . . . . . . . . . . 6 Distress Signals 5 | . . . . . . . . . . . . . . . . . . . . . . . . 5 Times Spotted 368 | . 26 18 . . . 1 . . 26 9 6 27 18 . . 4 29 14 21 47 16 23 38 45 Peak Tracking Total 11 | . 3 6 . . . 1 . . 6 2 6 4 4 . . 3 6 5 7 11 5 6 6 5 Tactical Retreats 23 | . 1 2 . . . . . . 5 1 . 2 . . . 1 2 . . 3 2 . . 4 Traps | -11 -10 -10 -9 -9 -6 -6 -6 -6 -5 -5 -5 -5 -5 -5 -5 -4 -4 -4 -4 -4 -3 -3 -3 -3 ------- Run | Yrd Mat Sub Rec Scr Fac Low Low Dat Pro Fac Was Fac Upp Upp Zhi Pro Fac Upp Upp War Pro Res Qua Sec Traps Triggered 10 | . . 2 . . 1 . . . . 2 . 2 . . . . 1 . . 1 . . 1 . Indirectly . | . . . . . . . . . . . . . . . . . . . . . . . . . Trap Hack Attempts . | . . . . . . . . . . . . . . . . . . . . . . . . . Triggered . | . . . . . . . . . . . . . . . . . . . . . . . . . Disarmed . | . . . . . . . . . . . . . . . . . . . . . . . . . Reprogrammed . | . . . . . . . . . . . . . . . . . . . . . . . . . Reused 2 | . . . . . . . . . 2 . . . . . . . . . . . . . . . Traps Extracted . | . . . . . . . . . . . . . . . . . . . . . . . . . Installed 5 | . . . . . . . . . 4 1 . . . . . . . . . . . . . . Triggered 2 | . . . . . . . . . 2 . . . . . . . . . . . . . . . Most Traps Carried 3 | . . . . . . . . . 3 1 . . . . . . . . . . . . . . Machines | -11 -10 -10 -9 -9 -6 -6 -6 -6 -5 -5 -5 -5 -5 -5 -5 -4 -4 -4 -4 -4 -3 -3 -3 -3 ---------- Run | Yrd Mat Sub Rec Scr Fac Low Low Dat Pro Fac Was Fac Upp Upp Zhi Pro Fac Upp Upp War Pro Res Qua Sec Machines Disabled 41 | . 2 4 . . . . . . . 6 . 2 . . . . 3 . 3 1 . 1 8 11 Max in Single Turn 2 | . 1 2 . . . . . . . 2 . 1 . . . . 1 . 1 1 . 1 1 2 Garrison Access 1 | . . . . . . . . . . . . . . . . . . . . . . . 1 . Machines Repaired . | . . . . . . . . . . . . . . . . . . . . . . . . . Machines Dismantled 1 | . . . . . . . . . . . . . . . . . . . . 1 . . . . Machines Sabotaged . | . . . . . . . . . . . . . . . . . . . . . . . . . Overloaded Fab Kills . | . . . . . . . . . . . . . . . . . . . . . . . . . Hacking | -11 -10 -10 -9 -9 -6 -6 -6 -6 -5 -5 -5 -5 -5 -5 -5 -4 -4 -4 -4 -4 -3 -3 -3 -3 --------- Run | Yrd Mat Sub Rec Scr Fac Low Low Dat Pro Fac Was Fac Upp Upp Zhi Pro Fac Upp Upp War Pro Res Qua Sec Machines Accessed 58 | . 7 2 3 2 1 . . 3 . 5 . 7 . . 4 . 6 . . 4 . 2 9 3 Terminals 29 | . 6 . 1 . . . . . . 4 . 5 . . . . 3 . . . . 1 6 3 Fabricators 1 | . . . . . . . . . . . . 1 . . . . . . . . . . . . Repair Stations 1 | . . . . . . . . . . . . . . . . . 1 . . . . . . . Recycling Units 9 | . 1 . 2 . 1 . . . . 1 . 1 . . . . 2 . . . . 1 . . Scanalyzers 2 | . . . . . . . . . . . . . . . . . . . . . . . 2 . Garrison Access 1 | . . . . . . . . . . . . . . . . . . . . . . . 1 . Total Hacks 185 | . 20 2 9 4 3 . . 28 . 13 . 26 . . 16 . 18 . . 8 . 8 24 6 Successful 111 | . 11 2 5 4 . . . 28 . 7 . 8 . . 16 . 5 . . 8 . 4 10 3 Failed 74 | . 9 . 4 . 3 . . . . 6 . 18 . . . . 13 . . . . 4 14 3 Catastrophic 9 | . . . . . . . . . . . . 4 . . . . 2 . . . . . 3 . Database Lockouts . | . . . . . . . . . . . . . . . . . . . . . . . . . Manual 75 | . 17 . 4 . 1 . . . . 9 . 8 . . . . 12 . . . . 4 16 4 Terminals 89 | . 16 . 2 . . . . . . 11 . 19 . . . . 11 . . . . 4 20 6 Fabricators 3 | . . . . . . . . . . . . 3 . . . . . . . . . . . . Repair Stations 3 | . . . . . . . . . . . . . . . . . 3 . . . . . . . Recycling Units 28 | . 4 . 7 . 3 . . . . 2 . 4 . . . . 4 . . . . 4 . . Scanalyzers 3 | . . . . . . . . . . . . . . . . . . . . . . . 3 . Garrison Access 1 | . . . . . . . . . . . . . . . . . . . . . . . 1 . Terminal Hacks 68 | . . 2 . 4 . . . 28 . 3 . 3 . . 16 . 1 . . 8 . 1 1 1 Record 22 | . . . . 4 . . . 6 . . . . . . 4 . . . . 7 . 1 . . Part Schematic 16 | . . . . . . . . 12 . . . . . . 4 . . . . . . . . . Robot Schematic 7 | . . . . . . . . 7 . . . . . . . . . . . . . . . . Robot Analysis 4 | . . . . . . . . . . . . . . . 4 . . . . . . . . . Prototype ID Bank 7 | . . . . . . . . 3 . . . . . . 4 . . . . . . . . . Open Door 3 | . . 1 . . . . . . . . . . . . . . . . . 1 . . . 1 Open DSF 1 | . . . . . . . . . . . . 1 . . . . . . . . . . . . Branch Access Points 3 | . . . . . . . . . . 1 . 1 . . . . 1 . . . . . . . Terminal Index 1 | . . . . . . . . . . . . . . . . . . . . . . . 1 . Locate Traps 2 | . . . . . . . . . . 1 . 1 . . . . . . . . . . . . Recall Extermination 1 | . . . . . . . . . . 1 . . . . . . . . . . . . . . Proto ID Catalog 1 | . . 1 . . . . . . . . . . . . . . . . . . . . . . Fabricator Hacks 1 | . . . . . . . . . . . . 1 . . . . . . . . . . . . Network Status 1 | . . . . . . . . . . . . 1 . . . . . . . . . . . . Repair Station Hacks 1 | . . . . . . . . . . . . . . . . . 1 . . . . . . . Scan Component 1 | . . . . . . . . . . . . . . . . . 1 . . . . . . . Recycling Unit Hacks 6 | . 1 . 1 . . . . . . 1 . 1 . . . . 1 . . . . 1 . . Retrieve Components 6 | . 1 . 1 . . . . . . 1 . 1 . . . . 1 . . . . 1 . . Scanalyzer 3 | . . . . . . . . . . . . . . . . . . . . . . . 3 . Insert Component 3 | . . . . . . . . . . . . . . . . . . . . . . . 3 . Garrison Access Hacks 1 | . . . . . . . . . . . . . . . . . . . . . . . 1 . Seal Access 1 | . . . . . . . . . . . . . . . . . . . . . . . 1 . Unauthorized Hacks 31 | . 10 . 4 . . . . . . 3 . 3 . . . . 2 . . . . 2 5 2 Terminals 23 | . 9 . 2 . . . . . . 2 . 2 . . . . . . . . . 1 5 2 Track 5 | . . . . . . . . . . 1 . 1 . . . . . . . . . . 2 1 Assimilate 1 | . 1 . . . . . . . . . . . . . . . . . . . . . . . Botnet 10 | . 2 . 1 . . . . . . 1 . 1 . . . . . . . . . 1 3 1 Operators 1 | . 1 . . . . . . . . . . . . . . . . . . . . . . . Skim 6 | . 5 . 1 . . . . . . . . . . . . . . . . . . . . . Fabricators . | . . . . . . . . . . . . . . . . . . . . . . . . . Repair Stations . | . . . . . . . . . . . . . . . . . . . . . . . . . Recycling Units 8 | . 1 . 2 . . . . . . 1 . 1 . . . . 2 . . . . 1 . . Tunnel 3 | . 1 . 2 . . . . . . . . . . . . . . . . . . . . . Fedlink 4 | . . . . . . . . . . . . 1 . . . . 2 . . . . 1 . . Scrapoids 1 | . . . . . . . . . . 1 . . . . . . . . . . . . . . Scanalyzers . | . . . . . . . . . . . . . . . . . . . . . . . . . Garrison Access . | . . . . . . . . . . . . . . . . . . . . . . . . . Data Cores Recovered . | . . . . . . . . . . . . . . . . . . . . . . . . . Used . | . . . . . . . . . . . . . . . . . . . . . . . . . Hacking Detections 36 | . 6 . 2 . 1 . . . . 5 . 7 . . . . 5 . . . . 1 7 2 Full Trace Events 5 | . . . . . 1 . . . . 1 . 1 . . . . 1 . . . . . 1 . Feedback Events 1 | . . . . . 1 . . . . . . . . . . . . . . . . . . . Corruption 1 | . . . . . 1 . . . . . . . . . . . . . . . . . . . Feedback Blocked . | . . . . . . . . . . . . . . . . . . . . . . . . . Robot Schematics Acquired 11 | . . . . . . . . 7 . . . . . . . . . . . . . . 4 . Robots Built . | . . . . . . . . . . . . . . . . . . . . . . . . . Authchips . | . . . . . . . . . . . . . . . . . . . . . . . . . Time . | . . . . . . . . . . . . . . . . . . . . . . . . . Total Robot Build Rating . | . . . . . . . . . . . . . . . . . . . . . . . . . Part Schematics Acquired 25 | . . . . . . . . 12 . . . . . . 4 . . . . . . . 9 . Parts Built . | . . . . . . . . . . . . . . . . . . . . . . . . . Authchips . | . . . . . . . . . . . . . . . . . . . . . . . . . Time . | . . . . . . . . . . . . . . . . . . . . . . . . . Total Part Build Rating . | . . . . . . . . . . . . . . . . . . . . . . . . . Part Studies Acquired . | . . . . . . . . . . . . . . . . . . . . . . . . . Parts Repaired . | . . . . . . . . . . . . . . . . . . . . . . . . . Time . | . . . . . . . . . . . . . . . . . . . . . . . . . Parts Recycled . | . . . . . . . . . . . . . . . . . . . . . . . . . Recycled Matter . | . . . . . . . . . . . . . . . . . . . . . . . . . Retrieved Matter . | . . . . . . . . . . . . . . . . . . . . . . . . . Retrieved Components 21 | . 10 . 1 . . . . . . . . . . . . . 3 . . . . 7 . . Parts Scanalyzed . | . . . . . . . . . . . . . . . . . . . . . . . . . Part Schematics Acquired . | . . . . . . . . . . . . . . . . . . . . . . . . . Parts Damaged . | . . . . . . . . . . . . . . . . . . . . . . . . . Bothacking | -11 -10 -10 -9 -9 -6 -6 -6 -6 -5 -5 -5 -5 -5 -5 -5 -4 -4 -4 -4 -4 -3 -3 -3 -3 ------------ Run | Yrd Mat Sub Rec Scr Fac Low Low Dat Pro Fac Was Fac Upp Upp Zhi Pro Fac Upp Upp War Pro Res Qua Sec Used RIF Installer . | . . . . . . . . . . . . . . . . . . . . . . . . . Robots Hacked . | . . . . . . . . . . . . . . . . . . . . . . . . . Non-combat . | . . . . . . . . . . . . . . . . . . . . . . . . . Combat . | . . . . . . . . . . . . . . . . . . . . . . . . . Robot Hacks Applied . | . . . . . . . . . . . . . . . . . . . . . . . . . Relay Couplers Released . | . . . . . . . . . . . . . . . . . . . . . . . . . Fabnet Peak Effective % . | . . . . . . . . . . . . . . . . . . . . . . . . . Robots Rewired 4 | . . . . . . . . . . . . . 2 . . . . . 2 . . . . . Allies Hacked 1 | . . . . . . . . . . . . 1 . . . . . . . . . . . . Hacks Repelled . | . . . . . . . . . . . . . . . . . . . . . . . . . Allies | -11 -10 -10 -9 -9 -6 -6 -6 -6 -5 -5 -5 -5 -5 -5 -5 -4 -4 -4 -4 -4 -3 -3 -3 -3 -------- Run | Yrd Mat Sub Rec Scr Fac Low Low Dat Pro Fac Was Fac Upp Upp Zhi Pro Fac Upp Upp War Pro Res Qua Sec Total Allies 31 | . 1 . . 1 . . . . 1 5 19 . 2 . . . . . 2 . . . . . Largest Group 19 | . 1 . . 1 1 1 1 . 1 5 19 5 2 2 2 2 . . 1 1 . . . . Highest-Rated Group 684 | . 10 . . 66 66 66 55 . 68 238 684 203 50 50 50 50 . . 47 47 . . . . Highest-Rated Ally 68 | . 10 . . 66 66 66 55 . 68 50 50 46 25 25 25 25 . . 47 47 . . . . Total Orders 3 | . . . . . . . . . . 3 . . . . . . . . . . . . . . STAY 2 | . . . . . . . . . . 2 . . . . . . . . . . . . . . FOLLOW 1 | . . . . . . . . . . 1 . . . . . . . . . . . . . . Ally Attacks 325 | . . . . . . 16 4 . 8 75 169 37 2 . . 1 . . 12 1 . . . . Total Damage 7849 | . . . . . . 597 118 . 282 1414 4336 617 76 . . 25 . . 358 26 . . . . Kills 28 | . . . . . . 1 . . . 10 8 8 1 . . . . . . . . . . . Allies Corrupted 2 | . . . . . . . . . . 1 . . . . . . . . . 1 . . . . Allies Melted 1 | . . . . . . . . . . . . . . . . . . . . 1 . . . . Intel | -11 -10 -10 -9 -9 -6 -6 -6 -6 -5 -5 -5 -5 -5 -5 -5 -4 -4 -4 -4 -4 -3 -3 -3 -3 ------- Run | Yrd Mat Sub Rec Scr Fac Low Low Dat Pro Fac Was Fac Upp Upp Zhi Pro Fac Upp Upp War Pro Res Qua Sec Active Infowar (turns) 27149 | 210 1556 6445 408 1790 335 822 1342 107 996 528 829 1547 1106 906 216 945 1911 705 14 . . 154 3005 1272 Optics 3054 | . . 183 . . 334 822 1342 107 266 . . . . . . . . . . . . . . . Sensors 11964 | . . . . . . . 1038 107 919 522 829 1547 1106 906 216 945 1911 705 14 . . . 248 951 Terrain 2072 | . . . . . . . . . . . . . . . . . . . . . . 154 1709 209 Traps 3 | . . . . . . . . . . . . . . . . . . . . . . . 3 . Seismic 11640 | 210 1556 6262 408 1790 335 785 294 . . . . . . . . . . . . . . . . . Jamming 2006 | . . . . . . . . . . . . . . . . . . . . . . . 1050 956 ECM 9 | . . . . . . . . . . 9 . . . . . . . . . . . . . . Robot Analysis Total 4 | . . . . . . . . . . . . . . . 4 . . . . . . . . . Derelict Logs Recovered 18 | . . 2 . 5 . . 2 . . . . . 2 2 . 1 . 1 3 . . . . . Drone Launches . | . . . . . . . . . . . . . . . . . . . . . . . . . Drone Recoveries . | . . . . . . . . . . . . . . . . . . . . . . . . . Exploration | -11 -10 -10 -9 -9 -6 -6 -6 -6 -5 -5 -5 -5 -5 -5 -5 -4 -4 -4 -4 -4 -3 -3 -3 -3 ------------- Run | Yrd Mat Sub Rec Scr Fac Low Low Dat Pro Fac Was Fac Upp Upp Zhi Pro Fac Upp Upp War Pro Res Qua Sec Turns Passed 40661 | 330 2597 6569 408 5690 345 822 1342 107 1163 673 907 1729 1299 910 476 985 1984 779 1241 1502 393 749 6063 1598 Spaces Moved 19287 | 159 985 2573 170 2127 182 505 863 78 665 1131 522 825 705 487 261 514 988 415 641 688 174 317 2397 915 Core 508 | 1 . . . . . . . . 55 452 . . . . . . . . . . . . . . Treads 13659 | . 875 2573 170 1115 . . . . . . 267 825 705 487 261 514 988 415 641 688 174 317 2266 378 Legs 108 | 3 . . . . . . . . . . . . . . . . . . . . . . 105 . Wheels 3541 | 155 110 . . 1012 182 505 863 78 610 . . . . . . . . . . . . . 26 . Hover 190 | . . . . . . . . . . . . . . . . . . . . . . . . 190 Flight 934 | . . . . . . . . . . 679 255 . . . . . . . . . . . . . Fastest Speed 17 | 50 100 240 240 160 148 138 138 138 50 20 17 160 164 166 166 166 165 168 168 170 170 166 145 84 Average Speed 185 | 100 226 240 240 258 148 147 138 138 135 35 143 161 164 166 166 166 166 168 169 170 170 168 219 182 Slowest Speed 1015 | 120 240 240 240 560 165 165 138 138 205 55 1015 165 166 166 166 166 168 168 170 170 170 170 470 385 Overloaded Moves 8 | . . . . . . . . . . . . . . . . . . . . . . . . 8 Propulsion Burnouts . | . . . . . . . . . . . . . . . . . . . . . . . . . Robots Hopped 3 | . . . . . . . . . . 1 2 . . . . . . . . . . . . . Potential Cave-ins 3 | . . . . . . . . . . . . . . 3 . . . . . . . . . . Cave-ins Triggered . | . . . . . . . . . . . . . . . . . . . . . . . . . Teleports 1 | . . . . . . . . . . . . . . . . . . . . . . 1 . . Microwarps 14 | . . . . . . . . . . . . . . . . . . . . . . . . 14 Exploration Rate (%) 57 | 5 100 94 35 85 7 79 77 72 59 24 94 27 75 50 60 62 27 61 86 70 37 10 96 39 Regions Visited 24 Branch Regions 17 Pre-discovered Areas 17 | . 2 2 2 3 . . . 1 . . . . 1 . 3 1 1 . 1 . . . . . Known Exits Taken 19 | . 1 . 1 . 1 1 1 1 1 . . 1 1 1 1 1 1 1 1 1 1 1 1 . Unknown Exits Taken 3 | 1 . 1 . 1 . . . . . . . . . . . . . . . . . . . . Scrap Searched 36 | . . 7 . 5 . 2 6 . 3 . . . 3 2 . . . 3 3 . 2 . . . Spaces Dug 313 | . 11 11 . . 11 . 1 . . 1 . 10 88 14 . 11 22 71 2 . 37 5 10 8 Terrain Destroyed 1580 | . 48 59 . . 11 . 1 . 106 24 4 40 266 38 . 21 130 123 236 14 130 65 145 119 Melee 22 | . 6 1 . . 11 . 1 . . 1 . 2 . . . . . . . . . . . . Projectile 393 | . . 7 . . . . . . 5 9 . 38 3 38 . 21 54 15 19 4 53 42 34 51 AOE 1165 | . 42 51 . . . . . . 101 14 4 . 263 . . . 76 108 217 10 77 23 111 68 Terrain Rammed . | . . . . . . . . . . . . . . . . . . . . . . . . . Walls Destroyed . | . . . . . . . . . . . . . . . . . . . . . . . . . Machines Disabled . | . . . . . . . . . . . . . . . . . . . . . . . . . Actions | -11 -10 -10 -9 -9 -6 -6 -6 -6 -5 -5 -5 -5 -5 -5 -5 -4 -4 -4 -4 -4 -3 -3 -3 -3 --------- Run | Yrd Mat Sub Rec Scr Fac Low Low Dat Pro Fac Was Fac Upp Upp Zhi Pro Fac Upp Upp War Pro Res Qua Sec Total 23043 | 292 1219 2851 171 2321 228 570 1013 77 850 1356 661 1085 788 544 303 600 1187 464 727 956 212 419 3064 1085 Wait 1798 | 96 98 147 . 99 10 44 123 . 69 104 79 133 18 8 2 47 65 20 5 178 8 17 282 146 Move 18925 | 158 984 2572 169 2126 181 504 862 77 664 1129 518 824 704 486 260 513 987 414 640 687 173 316 2396 581 Hop 2 | . . . . . . . . . . 1 1 . . . . . . . . . . . . . Pick Up 271 | 8 24 16 1 52 8 4 7 . 19 8 9 26 3 1 8 . 7 . 7 8 . 7 33 15 Fast Attach 160 | 8 . . . 1 1 1 4 . . 22 7 4 1 . 11 . 10 3 2 11 . 5 55 14 Attach 100 | . 1 9 . 2 7 2 . . 5 7 6 . 3 . . . 2 . 6 3 2 4 22 19 Detach 37 | . . 1 . 1 . . . . . 7 1 . . . . . . . 1 2 . . 10 14 Swap 320 | . 26 28 . 8 2 3 6 . 18 1 4 26 16 4 2 7 17 12 6 11 6 16 43 58 Drop 303 | 1 16 13 1 31 4 6 10 . 20 14 16 8 . 1 18 . 13 3 6 20 . 4 69 29 Fire 1027 | 21 60 63 . 1 . 6 . . 51 46 18 58 33 44 . 33 86 12 32 28 23 50 153 209 Melee 36 | . 10 2 . . 15 . 1 . . 1 2 3 . . 2 . . . . . . . . . Ram . | . . . . . . . . . . . . . . . . . . . . . . . . . Kick . | . . . . . . . . . . . . . . . . . . . . . . . . . Crush . | . . . . . . . . . . . . . . . . . . . . . . . . . Escape Stasis 19 | . . . . . . . . . . 15 . 3 . . . . . . . . . . 1 . Rewire 32 | . . . . . . . . . . . . . 10 . . . . . 22 . . . . . Trap 5 | . . . . . . . . . 4 1 . . . . . . . . . . . . . . Miscellaneous 8 | . . . . . . . . . . . . . . . . . . . . 8 . . . . Route ------- -11/Scrapyard -10/Materials (discovered 5 exits: [*Mat x3] / [*Min] / *Sub) -10/Subcaves (discovered 3 exits: [*Mat x2] / *Rec) -9/Recycling (discovered 2 exits: Fac / *Scr) -9/Scraptown (discovered 2 exits: *Fac x2) -6/Factory -6/Lower Caves -6/Lower Caves (discovered 2 exits: *Fac / *Dat) -6/Data Miner -5/Proximity Caves -5/Factory (discovered 3 exits: Fac / *Upp x2) -5/Waste -5/Factory (discovered 3 exits: *Fac / *Upp x2) -5/Upper Caves -5/Upper Caves (discovered 2 exits: Fac / *Zhi) -5/Zhirov -4/Proximity Caves -4/Factory (discovered 4 exits: *Upp x2 / Ext x2) -4/Upper Caves -4/Upper Caves (discovered 2 exits: *Res / *War) -4/Warlord -3/Proximity Caves -3/Research (discovered 2 exits: Res / *Qua) -3/Quarantine (discovered 3 exits: *Res / *Sec / *Frg) -3/Section 7 History --------- Turn | Location | Event 21 | -11/Scrapyard | Discovered new exit (range 16) 331 | -11/Scrapyard | Entered Materials 332 | -10/Materials | Build established: Mutant 669 | -10/Materials | Discovered new exit (range 12) 787 | -10/Materials | Discovered new exit (range 8) 1274 | -10/Materials | Discovered new exit (range 8) 1667 | -10/Materials | Discovered new exit (range 14) 1756 | -10/Materials | Identified exit to Subcaves 1827 | -10/Materials | Learned location of Recycling (-9) 1933 | -10/Materials | Learned 4 Recycling zone layouts 1991 | -10/Materials | Learned location of 2 exits from Mines 2002 | -10/Materials | Learned Storage trap positions 2022 | -10/Materials | Learned location of 1 exit from Recycling 2051 | -10/Materials | Loaded intel: 16 trap records 2088 | -10/Materials | Learned 4 Subcaves zone layouts 2928 | -10/Materials | Entered Subcaves 3509 | -10/Subcaves | Discovered new exit (range 16) 4189 | -10/Subcaves | Shifting Twisted Machinery released Sub. Machine Gun 4192 | -10/Subcaves | Shifting Twisted Machinery released Sub. Power Source 4435 | -10/Subcaves | Discovered new exit (range 15) 4746 | -10/Subcaves | Ambushed by Subdweller buried in earth 5487 | -10/Subcaves | A swath of the cavern ceiling suddenly collapsed 5612 | -10/Subcaves | Learned location of Zion (-7) 5612 | -10/Subcaves | Met a Zionite searching for "candidates" 5667 | -10/Subcaves | Shifting Twisted Machinery released Riot Gun 5683 | -10/Subcaves | Shifting Twisted Machinery released Sub. Shrapnel Launcher 5738 | -10/Subcaves | Disturbed a concealed Subdweller 5995 | -10/Subcaves | Ambushed by Subdweller buried in earth 5996 | -10/Subcaves | Core integrity fell below 50% 6657 | -10/Subcaves | Learned Materials security intel 7135 | -10/Subcaves | Visited 4L-MR0's lab 7161 | -10/Subcaves | Found Arachnoskeleton 9416 | -10/Subcaves | Discovered new exit (range 16) 9497 | -10/Subcaves | Entered Recycling 9498 | -9/Recycling | Identified exit to Scraptown 9499 | -9/Recycling | Identified exit to Factory 9847 | -9/Recycling | Scanned before Scraplab entrance 9881 | -9/Recycling | Entered Scraplab 9905 | -9/Recycling | Entered Scraptown 10109 | -9/Scraptown | Visited Symbiants 10148 | -9/Scraptown | Visited The Evicted 10172 | -9/Scraptown | Visited SPCMW 10205 | -9/Scraptown | Visited Spacefarers 10237 | -9/Scraptown | Visited Bundlers 10373 | -9/Scraptown | Visited Awakened 10405 | -9/Scraptown | Visited Fellowship of the Rings 10568 | -9/Scraptown | Scanned Subdweller tech in exchange for log data 10573 | -9/Scraptown | Learned Factory non-interactive machine intel 10576 | -9/Scraptown | Learned location of Warlord (-4) 10580 | -9/Scraptown | Learned location of 1 exit from Research 10616 | -9/Scraptown | Discovered new exit (range 11) 11066 | -9/Scraptown | Visited UFD Registry 11066 | -9/Scraptown | Registered with UFD as "Gammatube" 11135 | -9/Scraptown | Visited Botcube Research 11183 | -9/Scraptown | Visited Supply Room 11227 | -9/Scraptown | Visited LU-1G1's Boring Crew 11265 | -9/Scraptown | Visited Abandonware Association 11291 | -9/Scraptown | Learned abandonware demo "POISON.EXE" 11342 | -9/Scraptown | Visited Scrap Suit Storage 11373 | -9/Scraptown | Visited Scrapoid Pod Storage 11395 | -9/Scraptown | Visited A0-MCA Data Center 11450 | -9/Scraptown | Visited Scrapoid Research Area 11488 | -9/Scraptown | Visited Curators Association 11570 | -9/Scraptown | Visited Junk Repository 11776 | -9/Scraptown | Given an A rating by A0-MCA 11784 | -9/Scraptown | Found A0-MCA's Component Scanner 11873 | -9/Scraptown | Delivered Scrap Shield to a Scientist 12199 | -9/Scraptown | Build established: Hauler-Mutant 12348 | -9/Scraptown | Found Scrap Suit 12627 | -9/Scraptown | Found Scrapoid Pod 14373 | -9/Scraptown | Found Botcube 14789 | -9/Scraptown | Botcube activated 14811 | -9/Scraptown | Botcube completed mutation into treaded form, armed with 1 gun, 1 cannon. 14817 | -9/Scraptown | Attached CPS modules to Mutated Botcube. 15501 | -9/Scraptown | Met Optimus 15501 | -9/Scraptown | Accepted into 0bPrime 15589 | -9/Scraptown | Discovered new exit (range 3) 15595 | -9/Scraptown | Entered Factory 15595 | -6/Factory | Accompanied by 1 ally 15595 | -6/Factory | Evolved 8 slots: Propulsion x3, Utility x4, Weapon x1 15596 | -6/Factory | Loaded intel: 227 non-interactive machine locations 15831 | -6/Factory | Discovered new exit (range 4) 15849 | -6/Factory | Identified exit to Lower Caves 15940 | -6/Factory | Entered Lower Caves 15940 | -6/Lower Caves | Accompanied by 1 ally 15942 | -6/Lower Caves | UFD Scientist delivered a prototype 15949 | -6/Lower Caves | Found Prototype Protection 16217 | -6/Lower Caves | Encountered a Warlord checkpoint 16246 | -6/Lower Caves | Spotted B-75 Beast 16436 | -6/Lower Caves | Discovered new exit (range 19) 16732 | -6/Lower Caves | Identified exit to Lower Caves 16762 | -6/Lower Caves | Entered another Lower Caves area 16762 | -6/Lower Caves | Accompanied by 1 ally 16770 | -6/Lower Caves | Discovered new exit (range 11) 16775 | -6/Lower Caves | Learned 8 Factory zone layouts 16782 | -6/Lower Caves | Identified exit to Factory 17063 | -6/Lower Caves | Found Botcube 17086 | -6/Lower Caves | Build established: Hauler-Skirmisher 17135 | -6/Lower Caves | Learned location of 1 exit from Factory 17237 | -6/Lower Caves | Found Alien Artifact 17237 | -6/Lower Caves | Identified Core Expander 17237 | -6/Lower Caves | Installed Core Expander, added new Weapon slot 17293 | -6/Lower Caves | Encountered a Warlord checkpoint 17523 | -6/Lower Caves | Build established: Hauler-Assassin 17611 | -6/Lower Caves | Discovered new exit (range 3) 17614 | -6/Lower Caves | Identified exit to Data Miner 18104 | -6/Lower Caves | Entered Data Miner 18104 | -6/Data Miner | Discovered new exit (range 6) 18125 | -6/Data Miner | Met Data Miner 18154 | -6/Data Miner | Learned location of Section 7 (-3) 18154 | -6/Data Miner | Acquired the access code to Warlord's prototype stash 18179 | -6/Data Miner | Received God Mode back door access code from Data Miner 18208 | -6/Data Miner | Identified exit to Proximity Caves 18211 | -6/Data Miner | Entered Proximity Caves 18635 | -5/Proximity Caves | Unaware initiated a cargo recovery operation 18677 | -5/Proximity Caves | Build established: Hauler-Skirmisher 19164 | -5/Proximity Caves | Lost 4 parts (1u3w) 19313 | -5/Proximity Caves | Attracted the attention of an 0b10 checkpoint 19320 | -5/Proximity Caves | Spotted B-75 Beast 19340 | -5/Proximity Caves | Botcube activated 19368 | -5/Proximity Caves | Discovered exit to Factory (range 4) 19370 | -5/Proximity Caves | Lost 5 parts (1n2u2w) 19374 | -5/Proximity Caves | Entered Factory 19374 | -5/Factory | Evolved 2 slots: Propulsion x2 19375 | -5/Factory | Identified exit to Factory 19618 | -5/Factory | Build established: Mutant 19683 | -5/Factory | Scrapoid reinforcements arrived 19684 | -5/Factory | Incoming investigation squad redirected 19940 | -5/Factory | Identified exit to Upper Caves 19948 | -5/Factory | Destroyed 8 combat bots 19954 | -5/Factory | Found Prototype Launcher 19954 | -5/Factory | Identified Scatter Rocket Array 19996 | -5/Factory | Garrison activated, responded to threat 20047 | -5/Factory | Sucked down chute 20047 | -5/Factory | Entered Waste 20060 | -5/Waste | Build established: Scavenger-Sprinter 20061 | -5/Waste | Spotted C-40 Crusher 20061 | -5/Waste | Spotted C-40 Crusher 20085 | -5/Waste | Spotted C-40 Crusher 20086 | -5/Waste | Spotted C-40 Crusher 20093 | -5/Waste | Spotted C-40 Crusher 20093 | -5/Waste | Spotted C-40 Crusher 20098 | -5/Waste | Discovered new exit (range 16) 20103 | -5/Waste | Warlord forces began an assault 20125 | -5/Waste | Allies destroyed C-40 Crusher 20127 | -5/Waste | Allies destroyed C-40 Crusher 20134 | -5/Waste | Allies destroyed C-40 Crusher 20142 | -5/Waste | Allies destroyed C-40 Crusher 20157 | -5/Waste | Allies destroyed C-40 Crusher 20173 | -5/Waste | Allies destroyed C-40 Crusher 20199 | -5/Waste | Lost 12 allies 20708 | -5/Waste | Build established: Scavenger-Tank 20949 | -5/Waste | Identified exit to Factory 20954 | -5/Waste | Entered Factory 20954 | -5/Factory | Accompanied by 5 allies 21226 | -5/Factory | Identified exit to DSF 21508 | -5/Factory | Loaded intel: 8 recycling unit locations 21590 | -5/Factory | Discovered exit to Factory (range 6) 22656 | -5/Factory | Spotted B-75 Beast 22683 | -5/Factory | Entered Upper Caves 22978 | -5/Upper Caves | Attracted the attention of an 0b10 checkpoint 23117 | -5/Upper Caves | Learned Factory stockpile data 23709 | -5/Upper Caves | Attacked by a faux Warlord 23901 | -5/Upper Caves | Discovered new exit (range 11) 23918 | -5/Upper Caves | Identified exit to Upper Caves 23982 | -5/Upper Caves | Entered another Upper Caves area 23982 | -5/Upper Caves | Accompanied by 2 allies 24030 | -5/Upper Caves | Learned Factory stockpile data 24770 | -5/Upper Caves | Discovered new exit (range 13) 24874 | -5/Upper Caves | Identified exit to Zhirov 24892 | -5/Upper Caves | Entered Zhirov 24892 | -5/Zhirov | Accompanied by 2 allies 24894 | -5/Zhirov | Discovered new exit (range 3) 24923 | -5/Zhirov | Met Zhirov 24953 | -5/Zhirov | Learned location of Testing (-2) 24953 | -5/Zhirov | Learned location of Command (-1) 24968 | -5/Zhirov | Zhirov requested help retrieving the SGEMP Prototype 24994 | -5/Zhirov | Found Alien Artifact 24994 | -5/Zhirov | Identified Integrated Dissipator 24994 | -5/Zhirov | Installed Integrated Dissipator, increased core heat dissipation (+20) 25191 | -5/Zhirov | Build established: Scavenger-Mutant 25196 | -5/Zhirov | Identified exit to Proximity Caves 25294 | -5/Zhirov | Found Alien Artifact 25368 | -5/Zhirov | Entered Proximity Caves 25368 | -4/Proximity Caves | Accompanied by 2 allies 25429 | -4/Proximity Caves | Learned location of Armory (-3) 25694 | -4/Proximity Caves | Build established: Scavenger-Tank 26298 | -4/Proximity Caves | Discovered exit to Factory (range 7) 26353 | -4/Proximity Caves | Entered Factory 26353 | -4/Factory | Evolved 2 slots: Power x1, Utility x1 26446 | -4/Factory | Garrison activated, responded to threat 26553 | -4/Factory | Loaded intel: 8 recycling unit locations 26553 | -4/Factory | Learned location of Protoforge (-3) 26575 | -4/Factory | Incoming investigation squad redirected 26593 | -4/Factory | Spotted B-86 Titan 27341 | -4/Factory | Incoming investigation squad redirected 27589 | -4/Factory | Incoming investigation squad redirected 27648 | -4/Factory | Build established: Hacker-Tank 27789 | -4/Factory | Identified exit to Upper Caves 27789 | -4/Factory | Identified exit to Extension 28337 | -4/Factory | Entered Upper Caves 28349 | -4/Upper Caves | Attracted the attention of an 0b10 outpost 28737 | -4/Upper Caves | Learned Research stockpile data 28821 | -4/Upper Caves | Attracted the attention of an 0b10 checkpoint 28982 | -4/Upper Caves | Discovered new exit (range 5) 28992 | -4/Upper Caves | Identified exit to Upper Caves 29116 | -4/Upper Caves | Entered another Upper Caves area 29116 | -4/Upper Caves | Discovered new exit (range 2) 29118 | -4/Upper Caves | Identified exit to Research 29296 | -4/Upper Caves | Found Alien Artifact 29370 | -4/Upper Caves | Attracted the attention of an 0b10 outpost 29410 | -4/Upper Caves | Destroyed 7 combat bots 29666 | -4/Upper Caves | Attracted the attention of an 0b10 checkpoint 29707 | -4/Upper Caves | Learned Research stockpile data 30195 | -4/Upper Caves | Discovered new exit (range 10) 30330 | -4/Upper Caves | Learned location of 1 exit from Research 30355 | -4/Upper Caves | Identified exit to Warlord 30357 | -4/Upper Caves | Entered Warlord 30357 | -4/Warlord | Accompanied by 1 ally 30415 | -4/Warlord | System corruption cleaned by Quarantine Array 30601 | -4/Warlord | Found Prototype Device 30601 | -4/Warlord | Identified System Purifier 30615 | -4/Warlord | Found Prototype Device 30615 | -4/Warlord | Identified Exp. Phase Shifter 30650 | -4/Warlord | Found Prototype Processor 30650 | -4/Warlord | Identified Exp. Armor Integrity Analyzer 30675 | -4/Warlord | Found Prototype Reactor 30793 | -4/Warlord | Learned Research emergency access door positions 30793 | -4/Warlord | Learned Quarantine emergency access door positions 30795 | -4/Warlord | Learned 4 Armory zone layouts 30795 | -4/Warlord | Learned 4 Access zone layouts 30795 | -4/Warlord | Learned 4 Quarantine zone layouts 30796 | -4/Warlord | Learned Research repair station intel 30942 | -4/Warlord | Visited the Vortex Lab 30948 | -4/Warlord | Found Prototype Energy Gun 30948 | -4/Warlord | Identified Vortex Rail 30954 | -4/Warlord | Warlord's base attacked by MAIN.C 30959 | -4/Warlord | Found Vortex Rail 31304 | -4/Warlord | Warlord forces counterattacked 31386 | -4/Warlord | Lost 7 allies 31410 | -4/Warlord | Spotted Striker 31418 | -4/Warlord | Spotted Executioner 31461 | -4/Warlord | Spotted Striker 31480 | -4/Warlord | Destroyed Striker 31522 | -4/Warlord | Lost 20 allies 31629 | -4/Warlord | Warlord base infiltrated, sounded retreat 31640 | -4/Warlord | Spotted Striker 31645 | -4/Warlord | Spotted Striker 31690 | -4/Warlord | Lost 5 allies 31719 | -4/Warlord | Rebuked by Warlord 31837 | -4/Warlord | Discovered new exit (range 14) 31854 | -4/Warlord | Spotted Striker 31857 | -4/Warlord | Identified exit to Proximity Caves 31859 | -4/Warlord | Entered Proximity Caves 31886 | -3/Proximity Caves | Lost 3 allies 32015 | -3/Proximity Caves | Spotter reported a threat 32151 | -3/Proximity Caves | Discovered exit to Research (range 16) 32252 | -3/Proximity Caves | Entered Research 32252 | -3/Research | Evolved 2 slots: Utility x2 32253 | -3/Research | Identified exit to Quarantine 32253 | -3/Research | Identified exit to Research 32256 | -3/Research | Loaded intel: 4 repair station locations 32270 | -3/Research | Found Prototype Processor 32560 | -3/Research | Found Quantum Capacitor 32646 | -3/Research | Spotted B-86 Titan 32648 | -3/Research | Identified Transdimensional Reconstructor 32648 | -3/Research | Warped through subspace 32665 | -3/Research | Loaded intel: 5 recycling unit locations 32686 | -3/Research | Incoming investigation squad redirected 33001 | -3/Research | Entered Quarantine 33002 | -3/Quarantine | Identified exit to Section 7 33380 | -3/Quarantine | Discovered exit to Research (range 16) 33608 | -3/Quarantine | Scanned by Researcher 33643 | -3/Quarantine | Cryocooling Duct disabled 33645 | -3/Quarantine | Cryocooling Duct disabled 33649 | -3/Quarantine | Lost 3 parts (1n1u1w) 33658 | -3/Quarantine | Ambient heat levels rising (+20) 33658 | -3/Quarantine | Non-combat units ordered to evacuate 33660 | -3/Quarantine | Ambient heat levels rising (+20) 33660 | -3/Quarantine | Combat units ordered to evacuate 33682 | -3/Quarantine | System corruption reached 10% 33733 | -3/Quarantine | Lost 7 parts (1p3n3w) 33760 | -3/Quarantine | Quarantine Guard activated 33806 | -3/Quarantine | Spotted Quarantine Guard 33843 | -3/Quarantine | Destroyed Quarantine Guard 33866 | -3/Quarantine | Lost 4 parts (2n1u1w) 34177 | -3/Quarantine | Spotted Quarantine Guard 34205 | -3/Quarantine | Identified Vortex Chain Reactor 34207 | -3/Quarantine | Spotted Quarantine Guard 34208 | -3/Quarantine | Destroyed Quarantine Guard 34213 | -3/Quarantine | Destroyed Quarantine Guard 34235 | -3/Quarantine | Lost 4 parts (1p3u) 34246 | -3/Quarantine | System corruption reached 30% 34401 | -3/Quarantine | Spotted Quarantine Guard 34423 | -3/Quarantine | Destroyed Quarantine Guard 34492 | -3/Quarantine | Build established: Scavenger-Mutant 34571 | -3/Quarantine | Spotted Quarantine Guard 34600 | -3/Quarantine | Destroyed Quarantine Guard 34791 | -3/Quarantine | Found Alien Artifact 34792 | -3/Quarantine | Identified Core Reset Matrix 34792 | -3/Quarantine | Identified Dimensional Node Initializer 34792 | -3/Quarantine | Used Core Reset Matrix 34796 | -3/Quarantine | Detected hypermatrix surge 34796 | -3/Quarantine | Sensed 7 artifacts in vicinity 34881 | -3/Quarantine | Build established: Scavenger-Tank 35012 | -3/Quarantine | Found Unknown Protection 35258 | -3/Quarantine | Spotted Quarantine Guard 35682 | -3/Quarantine | Discovered exit to Research (range 14) 35682 | -3/Quarantine | Spotted Quarantine Guard 35694 | -3/Quarantine | Identified Adv. Powered Armor 35711 | -3/Quarantine | Destroyed Quarantine Guard 35825 | -3/Quarantine | Destroyed Quarantine Guard 35860 | -3/Quarantine | Spotted Quarantine Guard 35880 | -3/Quarantine | Destroyed Quarantine Guard 35999 | -3/Quarantine | Spotted Quarantine Guard 36015 | -3/Quarantine | Destroyed Quarantine Guard 36147 | -3/Quarantine | Spotted Quarantine Guard 36170 | -3/Quarantine | Destroyed Quarantine Guard 36573 | -3/Quarantine | Found Phase Redirector 36644 | -3/Quarantine | Found Prototype Processor 36778 | -3/Quarantine | Identified Exp. Signal Interpreter 36931 | -3/Quarantine | Found Unknown Protection 36931 | -3/Quarantine | Identified Imp. Powered Armor 36995 | -3/Quarantine | Spotted Alpha 7 37783 | -3/Quarantine | Spotted Fortress 37794 | -3/Quarantine | Destroyed Fortress 38014 | -3/Quarantine | Discovered new exit (range 8) 38014 | -3/Quarantine | Spotted Quarantine Guard 38019 | -3/Quarantine | Destroyed Quarantine Guard 38019 | -3/Quarantine | Spotted Quarantine Guard 38031 | -3/Quarantine | Destroyed Quarantine Guard 38031 | -3/Quarantine | Discovered exit to Section 7 (range 5) 38042 | -3/Quarantine | Identified exit to Protoforge 39064 | -3/Quarantine | Entered Section 7 39065 | -3/Section 7 | Detected hypermatrix surge 39065 | -3/Section 7 | Sensed 23 artifacts in vicinity 39225 | -3/Section 7 | Found Integrated Dissipator 39225 | -3/Section 7 | Installed Integrated Dissipator, increased core heat dissipation (+20) 39406 | -3/Section 7 | Spotted S7 Guard 39416 | -3/Section 7 | Destroyed S7 Guard 39453 | -3/Section 7 | Found Microwarp Drive 39683 | -3/Section 7 | Found Integrity Redistributor 40137 | -3/Section 7 | Spotted Alpha 7 40138 | -3/Section 7 | Spotted Alpha 7 40149 | -3/Section 7 | Destroyed Alpha 7 40166 | -3/Section 7 | Destroyed Alpha 7 40195 | -3/Section 7 | Lost 4 parts (1p3n) 40254 | -3/Section 7 | Spotted S7 Guard 40271 | -3/Section 7 | Found Core Regenerator 40289 | -3/Section 7 | Core integrity fell below 50% 40297 | -3/Section 7 | Destroyed S7 Guard 40314 | -3/Section 7 | First assault squad dispatched 40335 | -3/Section 7 | Incoming assault squad redirected 40405 | -3/Section 7 | Spotted B-99 Colossus 40464 | -3/Section 7 | Found Integrated Reactor 40466 | -3/Section 7 | Found Integrated Reactor 40468 | -3/Section 7 | Found Integrated Reactor 40520 | -3/Section 7 | Found LRC Energy Well 40572 | -3/Section 7 | Used Core Regenerator, restored core integrity (+325) 40641 | -3/Section 7 | Lost 8 parts (1p3n2u2w) 40661 | -3/Section 7 | Core integrity fell below 20% 40662 | -3/Section 7 | Core destroyed Last Messages --------------- 40620_ System corrupted: Heat flow error (+116). 40625_ Microwarped (distance 13). 40634_ Microwarped (distance 10). 40635_ Microwarped (distance 21). 40636_ Microwarped (distance 8). 40645_ System corrupted: Component data lost. 40650_ Microwarped (distance 18). [Achievement: Vwoop!] 40652_ B-99 Colossus springs to life. 40652_ Penetrated by Slug. 40652_ Slug penetrates FTL Facilitator. 40655_ Microwarped (distance 5). 40657_ Machine disabled. 40657_ Slug penetrates Machine. 40657_ Penetrated by Slug. 40659_ Machine collapses. 40660_ Microwarped (distance 48). 40661_ Microwarped (distance 80). 40662_ System corrupted: Heat flow error (+181). 40662_ Microwarped (distance 80). Map ----- +----------------------------------------------------+ | ?????????????????????????????????????? | | ?????????????????????????????????????? | | ?????????????????????????????????????? | | ?????????????????????????????????????? | | ?????????????????????????????????????? | | ?????????????????????????????????????? | | ?????????????????????????????????????? | | ???????????????????????????????????]?? | | ?????????????????????????????????????? | | ?????????????????????????????????????? | | ??????????????????????? ??????????? | | ????????????????????? ??????????? | | ?????????????????? ??????????? | | ???????????????? ??????????? | | ?????????????? ??????????? | | ?????????????? ?????????? | | ?????????????" ?????????? | | ?????????????" ?????????? | | ????????????"" ""????????? | | ???????????? """???????? | | ???????????? """"#??????? | | ??????????? """"#??????? | | ??????????? """#??????? | | ?????????? """#??????? | | ?????????? """#??????? | | @""""#??????? | | ?????????? """"""" """"#??????? | | ??????????????????""""""" """#??????? | | ???????????????????"""""" """#??????? | | ????????????????????###########??????? | | ?????????????????????????????????????? | | ?????????????????????????????????????? | | ?????????????????????????????????????? | | ?????????????????????????????????????? | | ?????????????????????????????????????? | | ?????????????????????????????????????? | | ?????????????????????????????????????? | | ?????????????????????????????????????? | | ?????????????????????????????????????? | | ?????????????????????????????????????? | | ?????????????????????????????????????? | | ?????????????????????????????????????? | | ?????????????????????????????????????? | | ?????????????????????????????????????? | | ?????????????????????????????????????? | | ?????????????????????????????????????? | | ?????????????????????????????????????? | | ?????????????????????????????????????? | | ?????????????????????????????????????? | | ?????????????????????????????????????? | +----------------------------------------------------+ Best States ------------- Heat Dissipation 117 Coolant Potential 120 Energy Generation 55 Energy Capacity 700 Matter Stores 300 Matter Capacity 300 Sight Range 21 Robot Scan Range 16 Terrain Scan Range 24 Terrain Scan Density 210 ECM Strength 1 Jamming Range 14 Armor Coverage 800 Resistance: TH 30 Resistance: EM 25 Evasion (%) 66 Recoil Reduction 7 Particle Charging 30 Offensive Hacking 21 Defensive Hacking 14 Authchip Count 1 Item Schematics ----------------- Coolant Network | -3/Quarantine | Archive Exp. Cooling System | -3/Quarantine | Archive Imp. KE Penetrator | -3/Quarantine | Archive Hvy. Gatling Laser | -3/Quarantine | Archive Hellfire Missile Launcher | -3/Quarantine | Archive Adv. Remote Shield | -3/Quarantine | Archive Exp. Power Amplifier | -3/Quarantine | Archive Plasma Sword | -3/Quarantine | Archive Prc. Matter Filter | -3/Quarantine | Archive Robot Schematics ------------------ B-74 Champion | -3/Quarantine | Archive S-43 Plague | -3/Quarantine | Archive K-01 Serf | -3/Quarantine | Archive T-07 Excavator | -3/Quarantine | Archive Fabricated ------------ Nothing Repaired ---------- Nothing Studied --------- None Alien Tech Used ----------------- Core Expander Integrated Dissipator Transdimensional Reconstructor Core Reset Matrix Microwarp Drive Core Regenerator Achievements -------------- Protector Vwoop! Challenges ------------ None Game ------ Seed PiercelightAntimatterLoader Manual? 0 Play Time 04:19:30 Cumulative 291.2 hours Start 2025.11.20 @ 16:22:12 End 2025.11.22 @ 17:34:04 Sessions 18 Manual Loads 0 Difficulty Rogue Special Mode None Game No. 81 Rogue 75 Adventurer 0 Explorer 6 Win Type - Total 16 Types 6/1/3/1/1/0/2/1/0/1 Lore% 83 Gallery% 76 Achievement% 66 Wizard Run 0 Options --------- Layout 1 ASCII 0 Keyboard 0 Movement Mouse Keybinds 0 Fullscreen 2 Font 24/Smallcaps Map View 50x35 Zoom Use 0% Tactical HUD 1 Map Filters NONE Filters NONE Steam 1 RUN: 66413550-ba59-4b99-9b59-83c77708a880